fUSD/lending_fUSD_20240518
["ID","MTS","AMOUNT","RATE_DAILY","PERIOD"]
[327351361,1716007839789,-36176.31832487,0.0003888,14]
[327351363,1716007840576,-1429.90181486,0.0003888,14]
[327351364,1716007840660,-662.70634916,0.0003888,14]
[327351365,1716007840671,-439.1475621,0.0003888,14]
[327351366,1716007840683,-197786.21571608,0.0003888,14]
[327351367,1716007840694,-4044.77437648,0.0003888,14]
[327351368,1716007841024,-745.0,0.0003888,14]
[327351369,1716007841361,-320.75767807,0.0003888,14]
[327351370,1716007841372,-236447.28720589,0.0003888,14]
[327351371,1716007841383,-453.8784,0.0003888,14]
[327351372,1716007841395,-573.85740148,0.0003888,14]
[327351373,1716007841407,-700.69872712,0.0003888,14]
[327351374,1716007841417,-1202.20027244,0.0003888,14]
[327351378,1716007843335,-2000.0,0.000375,2]
[327351379,1716007843346,-34276.56369026,0.0003888,14]
[327351380,1716007843415,-600.64996105,0.0003888,14]
[327351381,1716007843497,-615.28590621,0.0003888,14]
[327351382,1716007843509,-1201.84567139,0.0003888,14]
[327351384,1716007846352,-753.82809234,0.00017259,2]
[327351385,1716007846362,-457.62510194,0.00017259,2]
[327351386,1716007846372,-5676.85017472,0.00019,5]
[327351387,1716007846442,-1866.90474138,0.00019,5]
[327351388,1716007846454,-2308.78523856,0.00019,5]
[327351389,1716007846465,-1165.14432579,0.00019,5]
[327351427,1716009031568,-301.77695469,0.00011681,2]
[327351428,1716009031581,-244.9818887,0.00011681,2]
[327351429,1716009031590,-1519.0081113,0.00011682,2]
[327351430,1716009031608,-1935.23226309,0.00011682,2]
[327351431,1716009031831,-493.36047548,0.0001168,2]
[327351466,1716009037526,-363.07044995,0.0001168,2]
[327351467,1716009037746,-437.70943335,0.0001168,2]
[327351468,1716009037785,-1713.72400475,0.0001168,2]
[327351469,1716009037795,-1141.82762206,0.00011682,2]
[327351470,1716009037804,-155.0,0.00011683,2]
[327351471,1716009037813,-1380.55997718,0.00011683,2]
[327351472,1716009037822,-9257.15637845,0.00011684,2]
[327351473,1716009037833,-157.37297207,0.00011786,2]
[327351474,1716009037841,-4742.30332109,0.00011887,2]
[327351475,1716009037850,-1080.67189986,0.0001189,2]
[327351476,1716009037859,-1625.62011529,0.00011997,2]
[327351477,1716009037868,-5000.0,0.00012,2]
[327351478,1716009037878,-410.14975934,0.00012309,2]
[327351479,1716009037888,-6398.82536723,0.00012727,2]
[327351480,1716009037897,-211.34838905,0.00012728,2]
[327351481,1716009037907,-362.48389235,0.00013,2]
[327351482,1716009037916,-457.62510194,0.00013,2]
[327351484,1716009037925,-150.99,0.00013,2]
[327351486,1716009037934,-197.1,0.00013973,2]
[327351488,1716009037943,-618.72089771,0.00015,2]
[327351489,1716009037953,-158.68,0.00015803,2]
[327351490,1716009037963,-1226.74209097,0.000165,2]
[327351491,1716009037972,-1572.0,0.000165,2]
[327351492,1716009037981,-500.0,0.00016906,2]
[327351493,1716009037990,-200.0,0.0001709,2]
[327351494,1716009037999,-2751.0,0.00017196,2]
[327351495,1716009038009,-173.21,0.00017233,2]
[327351496,1716009038018,-222.95,0.00017404,2]
[327351497,1716009038028,-250.0,0.00017437,2]
[327351498,1716009038038,-23900.0,0.00017463,2]
[327351500,1716009038047,-200.0,0.00017477,2]
[327351501,1716009038056,-150.0,0.00017529,2]
[327351504,1716009038065,-250.0,0.00017596,2]
[327351507,1716009038075,-155.0,0.00018,2]
[327351511,1716009038086,-167.01,0.00018175,2]
[327351513,1716009038095,-300.0,0.0001846,2]
[327351515,1716009038104,-7153.477,0.000189,2]
[327351516,1716009038113,-210.5698,0.000189,2]
[327351517,1716009038122,-256.834,0.000189,2]
[327351518,1716009038131,-2651.2496,0.000189,2]
[327351519,1716009038140,-326.0,0.0001899,3]
[327351520,1716009038149,-163.0,0.0001899,3]
[327351521,1716009038159,-489.05,0.0001899,3]
[327351522,1716009038168,-12406.49590636,0.00019,5]
[327351523,1716009038177,-1043.0920579,0.00019,2]
[327351524,1716009038190,-37456.48019318,0.00019,2]
[327351525,1716009038199,-1038.65205609,0.00019,2]
[327351526,1716009038209,-500.0,0.00019,2]
[327351527,1716009038218,-4895.0,0.00019012,2]
[327351528,1716009038227,-3879.18657409,0.000192,2]
[327351529,1716009038237,-200.0,0.00019226,2]
[327351530,1716009038247,-472.11273273,0.000195,2]
[327351531,1716009038256,-180.0,0.0001956,2]
[327351532,1716009038266,-9166.0405,0.000198,2]
[327351533,1716009038276,-174.08834986,0.000198,2]
[327351534,1716009038285,-11491.9218,0.000199,2]
[327351535,1716009038294,-627.57712,0.0002,2]
[327351536,1716009038304,-5182.97271811,0.0002,2]
[327351537,1716009038315,-1772.44606718,0.0002,2]
[327351538,1716009038328,-6236.08966478,0.0002,2]
[327351539,1716009038337,-1262.30364489,0.0002,2]
[327351540,1716009038346,-861.79098037,0.0002,2]
[327351541,1716009038355,-155.0,0.0002,2]
[327351542,1716009038364,-168.48,0.00020203,2]
[327351543,1716009038374,-652.0,0.0002036,3]
[327351544,1716009038384,-326.0,0.0002036,3]
[327351545,1716009038395,-197.1,0.00020447,2]
[327351546,1716009038407,-2500.0,0.000209,2]
[327351547,1716009038416,-717.49719888,0.00021,2]
[327351548,1716009038426,-167.01,0.00021175,2]
[327351549,1716009038435,-200.0,0.00021362,2]
[327351550,1716009038444,-6767.13708574,0.000219,2]
[327351551,1716009038454,-29982.1147,0.000219,2]
[327351552,1716009038463,-235.0,0.00021918,2]
[327351553,1716009038472,-172.36,0.00021918,2]
[327351554,1716009038482,-2000.0,0.00021918,2]
[327351555,1716009038493,-158.68,0.00021947,2]
[327351556,1716009038502,-5520.28770876,0.00022,2]
[327351557,1716009038511,-222.95,0.00022883,2]
[327351558,1716009038520,-2003.50782915,0.000234,2]
[327351559,1716009038530,-200.0,0.00023498,2]
[327351560,1716009038539,-293.88203282,0.000235,2]
[327351561,1716009038550,-445.01433264,0.000235,2]
[327351562,1716009038559,-432.75692337,0.00024,2]
[327351563,1716009038569,-914.6122,0.000249,2]
[327351564,1716009038579,-9148.79926231,0.0002499,2]
[327351565,1716009038588,-336.22001059,0.00025,7]
[327351566,1716009038597,-2299.63708895,0.00025,2]
[327351567,1716009038607,-155.0,0.00025,2]
[327351568,1716009038618,-224.1230564,0.00025,2]
[327351569,1716009038627,-926.12875824,0.00025,2]
[327351570,1716009038636,-575.12287039,0.00025,14]
[327351571,1716009038647,-155.0,0.00025,2]
[327351572,1716009038656,-500.0,0.00025053,2]
[327351573,1716009038665,-7500.0,0.00025053,2]
[327351574,1716009038675,-166382.10148651,0.00025153,2]
[327351575,1716009038689,-47458.85961349,0.00025153,2]
[327351576,1716009038699,-200.0,0.00025635,2]
[327351577,1716009038708,-1201.99249305,0.00026653,2]
[327351578,1716009038718,-197.1,0.00026921,2]
[327351579,1716009038727,-1742.60595667,0.00027,2]
[327351580,1716009038737,-14260.58690521,0.00027358,2]
[327351581,1716009038747,-150.0,0.00027397,2]
[327351582,1716009038756,-528.0,0.00027397,10]
[327351583,1716009038766,-440.0,0.00027397,10]
[327351584,1716009038776,-162.58,0.000274,2]
[327351585,1716009038785,-1201.99249303,0.00027956,2]
[327351586,1716009038794,-48983.4423,0.00028025,2]
[327351587,1716009038803,-158.68,0.00028092,2]
[327351588,1716009038812,-150.0,0.00028118,2]
[327351589,1716009038822,-150.0,0.00028839,2]
[327351590,1716009038833,-1000.0,0.000289,2]
[327351591,1716009038842,-1481.05847419,0.00029,2]
[327351592,1716009038851,-77947.3309472,0.00029,2]
[327351593,1716009038860,-183.68671614,0.00029075,2]
[327351594,1716009038870,-1201.99249303,0.0002926,2]
[327351595,1716009038879,-779.42255996,0.000295,3]
[327351596,1716009038888,-150.0,0.0002956,2]
[327351597,1716009039040,-473.32650705,0.00029952,2]
[327351598,1716009039050,-766.41368884,0.00029952,2]
[327351599,1716009039060,-980.53326975,0.00029952,2]
[327351600,1716009039069,-13381.99741206,0.0003,5]
[327351601,1716009039080,-164.33971255,0.0003,2]
[327351602,1716009039089,-5979.63672683,0.0003,4]
[327351603,1716009039822,-366.67,0.00027397,10]
[327351604,1716009039833,-17824.29752281,0.0003,4]
[327351605,1716009039842,-19384.48887425,0.0003,4]
[327351606,1716009039852,-5684.64320039,0.0003,2]
[327351607,1716009039861,-687.0861,0.0003,4]
[327351608,1716009039871,-150.0,0.00030281,2]
[327351609,1716009039880,-1201.99249303,0.00030563,2]
[327351610,1716009039889,-150.0,0.00031002,2]
[327351611,1716009039899,-314.051814,0.00031148,30]
[327351612,1716009039909,-314.051814,0.00031448,30]
[327351613,1716009039918,-150.0,0.00031723,2]
[327351614,1716009039928,-314.051814,0.00031748,32]
[327351615,1716009039938,-1201.99249303,0.00031866,2]
[327351616,1716009039948,-314.051814,0.00031948,30]
[327351617,1716009039957,-155.0,0.00032,4]
[327351618,1716009039966,-333.25588851,0.00032,4]
[327351619,1716009039976,-314.051814,0.00032148,32]
[327351620,1716009039985,-150.0,0.00032444,2]
[327351621,1716009039995,-314.051814,0.00032448,32]
[327351622,1716009040004,-314.051814,0.00032748,34]
[327351623,1716009040014,-31786.26307818,0.000328,2]
[327351624,1716009040025,-1805.2443034,0.000328,2]
[327351625,1716009040037,-5003.02150673,0.000328,2]
[327351626,1716009040048,-492.61339342,0.000328,2]
[327351627,1716009040059,-1079.69052477,0.000328,2]
[327351628,1716009040070,-830.64391533,0.000328,2]
[327351629,1716009040083,-1002.38257817,0.000328,2]
[327351630,1716009040092,-1997.61742183,0.000328,2]
[327351631,1716009040107,-1422.59187817,0.000328,2]
[327351632,1716009040116,-88.08985484,0.00032827,2]
[327351633,1716009040128,-62.61599416,0.00032827,2]
[327351634,1716009040137,-150.705849,0.00032827,2]
[327351635,1716009040146,-528.18244504,0.00032853,3]
[327351636,1716009040157,-2485.75645982,0.00032853,3]
[327351637,1716009040168,-561.21699996,0.00032853,3]
[327351641,1716009042432,-356.9735356,0.00032853,3]
[327351650,1716009042600,-6067.87055958,0.00032853,3]
[327351651,1716009042610,-5060.62730203,0.000329,30]
[327351652,1716009042815,-200404.03385722,0.000329,30]
[327351653,1716009042825,-314.051814,0.00032948,32]
[327351654,1716009042836,-216.70697534,0.00033,120]
[327351655,1716009042845,-314.051814,0.00033148,34]
[327351656,1716009042855,-235.0,0.00033151,120]
[327351657,1716009042865,-150.0,0.00033165,2]
[327351658,1716009042874,-1201.99249303,0.0003317,2]
[327351659,1716009042884,-197.1,0.00033396,2]
[327351660,1716009042893,-314.051814,0.00033448,34]
[327351661,1716009042902,-314.051814,0.00033748,36]
[327351662,1716009042912,-150.0,0.00033886,2]
[327351663,1716009042923,-314.051814,0.00033948,34]
[327351664,1716009042932,-314.051814,0.00034148,36]
[327351665,1716009042941,-158.68,0.00034237,2]
[327351666,1716009042951,-314.051814,0.00034448,36]
[327351667,1716009042960,-150.705849,0.00034469,2]
[327351668,1716009042969,-1201.99249303,0.00034473,2]
[327351670,1716009042978,-150.0,0.00034607,2]
[327351671,1716009042988,-314.051814,0.00034748,36]
[327351672,1716009042997,-150.698096,0.00034867,2]
[327351673,1716009043006,-150.698096,0.00034867,2]
[327351674,1716009043016,-314.051814,0.00034948,36]
[327351675,1716009043025,-2295.60278269,0.00035,4]
[327351676,1716009043034,-29311.28890874,0.00035,4]
[327351677,1716009043044,-150.0,0.00035328,2]
[327351678,1716009043053,-314.051814,0.00035448,38]
[327351679,1716009043063,-314.051814,0.00035748,38]
[327351680,1716009043072,-1201.99249303,0.00035777,2]
[327351681,1716009043082,-314.051814,0.00035948,38]
[327351682,1716009043091,-172.36,0.00035959,120]
[327351683,1716009043101,-150.0,0.00036049,2]
[327351684,1716009043110,-314.051814,0.00036148,38]
[327351685,1716009043119,-314.051814,0.00036448,40]
[327351687,1716009043129,-314.051814,0.00036748,40]
[327351689,1716009043138,-150.0,0.0003677,2]
[327351691,1716009043147,-314.051814,0.00036948,40]
[327351693,1716009043156,-1201.99249303,0.0003708,2]
[327351695,1716009043166,-314.051814,0.00037148,40]
[327351697,1716009043175,-314.051814,0.00037448,40]
[327351699,1716009043184,-150.0,0.00037491,2]
[327351701,1716009043197,-2059.77144597,0.000377,4]
[327351703,1716009043206,-314.051814,0.00037748,42]
[327351705,1716009043215,-314.051814,0.00037948,42]
[327351707,1716009043224,-314.051814,0.00038148,42]
[327351709,1716009043234,-150.0,0.00038212,2]
[327351711,1716009043243,-1201.99249303,0.00038383,2]
[327351712,1716009043252,-314.051814,0.00038448,42]
[327351713,1716009043261,-10000.0,0.00038572,4]
[327351714,1716009043273,-314.051814,0.00038748,42]
[327351715,1716009043282,-158.43787398,0.000388,2]
[327351716,1716009043291,-169.40660434,0.000388,12]
[327351717,1716009043300,-1394.19379485,0.000388,12]
[327351718,1716009043308,-349.15733,0.0003887,2]
[327351719,1716009043317,-155.66189991,0.00038878,4]
[327351720,1716009043326,-4287.38234581,0.00038878,5]
[327351721,1716009043335,-54795.93810509,0.0003888,14]
[327351722,1716009043455,-434.18940075,0.0003888,14]
[327351723,1716009043466,-977.79543901,0.0003888,14]
[327351724,1716009043481,-811.45434183,0.0003888,14]
[327351725,1716009043492,-4052.65503142,0.0003888,14]
[327351726,1716009043503,-1884.50933853,0.0003888,14]
[327351727,1716009045488,-452.28,0.0003888,14]
[327351728,1716009045527,-151669.11205205,0.0003888,14]
[327351729,1716009045536,-885.15310528,0.000389,30]
[327351730,1716009045545,-150.0,0.00038933,2]
[327351731,1716009045555,-314.051814,0.00038948,44]
[327351732,1716009045565,-314.051814,0.00039148,46]
[327351733,1716009045574,-1394.19379474,0.00039355,13]
[327351734,1716009045584,-314.051814,0.00039448,48]
[327351735,1716009045594,-150.0,0.00039654,2]
[327351736,1716009045603,-1201.99249303,0.00039687,2]
[327351737,1716009045612,-173.051813,0.00039748,48]
[327351738,1716009045622,-1034.0,0.000398,7]
[327351739,1716009045631,-960.05463042,0.0003984,10]
[327351740,1716009045641,-295.85,0.0003987,2]
[327351741,1716009045650,-197.1,0.0003987,2]
[327351742,1716009045659,-1394.19379474,0.00039909,13]
[327351743,1716009045668,-314.051814,0.00039948,46]
[327351744,1716009045678,-5046.00762816,0.0004,4]
[327351745,1716009045687,-215.79747019,0.0004,30]
[327351746,1716009045696,-6378.62648579,0.0004,4]
[327351747,1716009045715,-6260.94478602,0.0004,4]
[327351748,1716009045795,-493.706,0.0004,4]
[327351751,1716009775579,1669.235868,0.00010952,2]
[327351752,1716009827216,155.0,0.00010952,2]
[327351753,1716009843233,155.96246997,0.00010952,2]
[327351754,1716009851474,1648.34341228,0.00010903,2]
[327351766,1716010217336,159.46,9.21e-05,2]
[327351768,1716010231735,-155.0,0.00010584,2]
[327351769,1716010231749,-167.91174239,0.00010585,2]
[327351770,1716010231763,-2839.95262114,0.00010585,2]
[327351771,1716010231920,-2536.27098873,0.00010586,2]
[327351772,1716010231930,-2536.27098872,0.00010587,2]
[327351773,1716010231939,-2536.27098872,0.00010587,2]
[327351774,1716010231949,-150.0,0.00010683,2]
[327351775,1716010231959,-546.75884339,0.00010684,2]
[327351776,1716010231968,-4596.06799645,0.00010684,2]
[327351777,1716010231977,-1380.55997718,0.00010685,2]
[327351778,1716010231987,-7824.25970725,0.00010685,2]
[327351779,1716010231999,-7353.0,0.00010685,2]
[327351780,1716010232010,-451.92492773,0.00010685,2]
[327351781,1716010232022,-624.91528117,0.00010685,2]
[327351782,1716010232033,-776.61022031,0.00010685,2]
[327351783,1716010232062,-1789.64185644,0.00010685,2]
[327351784,1716010232074,-538.57531119,0.00010795,2]
[327351785,1716010232083,-12232.0907,0.00010802,2]
[327351786,1716010232093,-5664.5420019,0.00010893,2]
[327351787,1716010232103,-1080.67189986,0.00010901,2]
[327351788,1716010232112,-1786.15842645,0.00010902,2]
[327351789,1716010232124,-938.21279485,0.00010902,2]
[327351790,1716010232135,-1323.33623216,0.00010902,2]
[327351791,1716010232219,-694.59586763,0.00010902,2]
[327351792,1716010232228,-6087.48,0.00010902,2]
[327351793,1716010232237,-21919.41995747,0.00010903,2]
[327351794,1716010232248,-4574.59801111,0.00010903,2]
[327351799,1716010237771,-418254.30109488,0.00010903,2]
[327351800,1716010237784,-102745.61347038,0.00010903,2]
[327351801,1716010237793,-1511.52,0.00010959,2]
[327351802,1716010237803,-326.0,0.00010959,2]
[327351803,1716010237812,-271.67,0.00010959,2]
[327351804,1716010237822,-226.39,0.00010959,2]
[327351805,1716010237832,-188.66,0.00010959,2]
[327351806,1716010237843,-751.08630273,0.00011,2]
[327351807,1716010237853,-1914.34,0.00011002,4]
[327351808,1716010237862,-157.37297207,0.00011008,2]
[327351809,1716010237873,-2057.95,0.00011128,2]
[327351810,1716010237883,-1623.91221313,0.00011182,2]
[327351811,1716010237894,-560.0,0.0001162,2]
[327351812,1716010237903,-210.0,0.00011751,2]
[327351813,1716010237912,-1379.07,0.000119,2]
[327351814,1716010237922,-150.99,0.000119,2]
[327351815,1716010237931,-499.99,0.000119,2]
[327351816,1716010237940,-5000.0,0.00012,2]
[327351817,1716010237950,-155.02,0.00012574,2]
[327351818,1716010237960,-548.99,0.00012619,2]
[327351819,1716010237970,-174.08834986,0.00012889,2]
[327351820,1716010237979,-155.02,0.00012902,2]
[327351821,1716010237990,-180.0,0.00012907,2]
[327351822,1716010238000,-362.48389235,0.00013,2]
[327351823,1716010238010,-457.62510194,0.00013,2]
[327351824,1716010238020,-560.0,0.00013072,2]
[327351825,1716010238029,-155.02,0.00013229,2]
[327351826,1716010238039,-150.02,0.00013973,2]
[327351827,1716010238049,-160.39,0.00013973,2]
[327351828,1716010238059,-221.88,0.00013973,2]
[327351829,1716010238068,-560.0,0.00014525,2]
[327351830,1716010238081,-159.46,0.00014587,2]
[327351831,1716010238095,-618.72089771,0.00015,2]
[327351832,1716010238109,-200.0,0.00015217,2]
[327351833,1716010238122,-1500.0,0.0001528,2]
[327351834,1716010238135,-500.0,0.00015317,2]
[327351835,1716010238147,-1030.65,0.0001542,2]
[327351836,1716010238158,-250.0,0.00015546,2]
[327351837,1716010238170,-974.48,0.0001559,2]
[327351838,1716010238182,-2751.0,0.00015591,2]
[327351839,1716010238194,-23900.0,0.00015601,2]
[327351841,1716010238206,-500.0,0.00015602,2]
[327351843,1716010238218,-250.0,0.0001584,2]
[327351845,1716010238231,-150.0,0.00015873,2]
[327351848,1716010238243,-560.0,0.00015977,2]
[327351850,1716010238254,-4000.0,0.00015982,2]
[327351852,1716010238267,-157.01,0.00016187,2]
[327351855,1716010238279,-157.01,0.00016195,2]
[327351857,1716010238292,-157.01,0.00016203,2]
[327351860,1716010238304,-157.01,0.00016211,2]
[327351864,1716010238315,-157.01,0.00016219,2]
[327351866,1716010238326,-157.01,0.00016227,2]
[327351868,1716010238337,-157.01,0.00016236,2]
[327351870,1716010238347,-157.01,0.00016244,2]
[327351872,1716010238358,-157.01,0.00016252,2]
[327351874,1716010238371,-157.01,0.0001626,2]
[327351877,1716010238384,-157.01,0.00016268,2]
[327351879,1716010238396,-166.91,0.00016307,2]
[327351881,1716010238407,-1226.74209097,0.000165,2]
[327351883,1716010238418,-250.0,0.0001659,2]
[327351885,1716010238428,-167.52,0.00016614,2]
[327351887,1716010238438,-1572.0,0.000167,2]
[327351889,1716010238450,-200.0,0.00016759,2]
[327351892,1716010238461,-2987.38,0.00017091,2]
[327351894,1716010238472,-12191.74,0.000172,2]
[327351896,1716010238483,-1625.62011529,0.00017256,2]
[327351898,1716010238494,-410.14975934,0.00017257,2]
[327351900,1716010238506,-6398.82536723,0.00017258,2]
[327351903,1716010238518,-560.0,0.0001743,2]
[327351905,1716010238530,-167.01,0.0001794,2]
[327351907,1716010238542,-155.0,0.00018,2]
[327351909,1716010238554,-974.48,0.00018329,2]
[327351912,1716010238567,-211.34838905,0.00018999,2]
[327351914,1716010238578,-155.1664139,0.00019,2]
[327351916,1716010238589,-671.41368636,0.00019,2]
[327351918,1716010238599,-23424.18038681,0.00019,5]
[327351920,1716010238609,-166.91,0.00019025,2]
[327351922,1716010238620,-3879.18657409,0.000192,2]
[327351924,1716010238631,-1427.47228584,0.00019295,2]
[327351930,1716010238675,-1235.9041344,0.00019295,2]
[327351932,1716010238689,-2231.62357976,0.00019295,2]
[327351934,1716010238699,-460.44746394,0.000195,2]
[327351937,1716010238712,-11.66526879,0.000195,2]
[327351939,1716010238724,-3665.44646321,0.000197,2]
[327351941,1716010238737,-3530.64173,0.000197,2]
[327351944,1716010238753,-282.72235274,0.000197,2]
[327351946,1716010238771,-848.26710872,0.000197,2]
[327351949,1716010238784,-385.90399479,0.000197,2]
[327352083,1716010239908,-996.14,0.00015591,2]
[327352086,1716010239920,-53.91517176,0.000197,2]
[327352094,1716010239978,-399.14367878,0.000197,2]
[327352097,1716010239990,-2160.85632122,0.000198,2]
[327352149,1716010240281,-798.58962814,0.000198,2]
[327352162,1716010240348,-540.39,0.000198,2]
[327352354,1716010243264,-1054.93108227,0.000198,2]
[327352355,1716010243300,-44428.67526837,0.000198,2]
[327352356,1716010243310,-1000.0,0.000198,4]
[327352357,1716010243320,-1000.0,0.000198,4]
[327352358,1716010243330,-1000.0,0.000198,4]
[327352359,1716010243339,-1000.0,0.000198,4]
[327352360,1716010243530,-157.22,0.0001989,3]
[327352361,1716010243549,-36378.91380772,0.000199,2]
[327352362,1716010243561,-619.10457442,0.000199,2]
[327352364,1716010245989,-546.75884339,0.00017259,2]
[327352365,1716010245999,-1665.54862987,0.00017259,2]
[327352366,1716010246009,-63001.98161786,0.000199,2]
[327352367,1716010246018,-159.46,0.00019964,2]
[327352368,1716010246028,-298.7761446,0.0002,2]
[327352369,1716010246037,-627.57712,0.0002,2]
[327352370,1716010246046,-6236.08966478,0.0002,2]
[327352371,1716010246056,-1262.30364489,0.0002,2]
[327352372,1716010246065,-861.79098037,0.0002,2]
[327352373,1716010246074,-5182.97271811,0.0002,2]
[327352374,1716010246084,-1772.44606718,0.0002,2]
[327352375,1716010246094,-221.88,0.00020447,2]
[327352376,1716010246103,-11491.9218,0.000207,2]
[327352377,1716010246112,-39164.3981,0.000208,2]
[327352378,1716010246121,-1000.0,0.000208,2]
[327352379,1716010246131,-167.01,0.00020902,2]
[327352380,1716010246140,-717.49719888,0.00021,2]
[327352381,1716010246149,-974.48,0.00021069,2]
[327352382,1716010246159,-314.44,0.0002126,3]
[327352383,1716010246167,-166.91,0.00021743,2]
[327352384,1716010246178,-245000.0,0.000218,2]
[327352385,1716010246187,-6767.13708574,0.000219,2]
[327352386,1716010246196,-156.66,0.00021918,2]
[327352387,1716010246206,-154.09,0.00021918,2]
[327352388,1716010246215,-2000.0,0.00021918,2]
[327352389,1716010246224,-5520.28770876,0.00022,2]
[327352390,1716010246234,-1000.0,0.00022,4]
[327352391,1716010246243,-1000.0,0.00023,3]
[327352392,1716010246253,-1000.0,0.00023,3]
[327352393,1716010246262,-2003.50782915,0.000234,2]
[327352394,1716010246274,-432.75692337,0.00024,2]
[327352395,1716010246283,-1000.0,0.00024,4]
[327352396,1716010246294,-1000.0,0.00024,4]
[327352397,1716010246305,-150.02,0.00024224,2]
[327352398,1716010246315,-166.91,0.00024461,2]
[327352399,1716010246324,-167.52,0.00024921,2]
[327352400,1716010246333,-9148.79926231,0.0002499,2]
[327352401,1716010246343,-575.12287039,0.00025,14]
[327352402,1716010246352,-155.0,0.00025,2]
[327352403,1716010246361,-926.12875824,0.00025,2]
[327352404,1716010246371,-155.0,0.00025,2]
[327352405,1716010246380,-224.1230564,0.00025,2]
[327352406,1716010246390,-1000.0,0.00025,5]
[327352407,1716010246399,-1000.0,0.00025,4]
[327352408,1716010246409,-159.46,0.0002534,2]
[327352409,1716010246418,-1000.0,0.00026,5]
[327352410,1716010246427,-160.39,0.00026274,2]
[327352411,1716010246436,-221.88,0.00026921,2]
[327352412,1716010246445,-1742.60595667,0.00027,2]
[327352413,1716010246455,-150.0,0.00027397,2]
[327352414,1716010246464,-466.89,0.00027397,10]
[327352415,1716010246473,-389.07,0.00027397,10]
[327352416,1716010246482,-162.58,0.000274,2]
[327352417,1716010246492,-150.0,0.00028118,2]
[327352418,1716010246502,-150.0,0.00028839,2]
[327352419,1716010246511,-77947.3309472,0.00029,2]
[327352420,1716010246521,-1481.05847419,0.00029,2]
[327352421,1716010246532,-29982.1147,0.0002946,2]
[327352422,1716010246541,-779.42255996,0.000295,3]
[327352423,1716010246552,-150.0,0.0002956,2]
[327352424,1716010246561,-23803.93424964,0.0003,4]
[327352425,1716010246571,-19384.48887425,0.0003,4]
[327352426,1716010246581,-5684.64320039,0.0003,2]
[327352427,1716010246590,-1000.0,0.0003,6]
[327352428,1716010246599,-237.0,0.0003,5]
[327352429,1716010246608,-1000.0,0.0003,7]
[327352430,1716010246618,-150.0,0.00030281,2]
[327352431,1716010246627,-1107.0,0.000307,2]
[327352432,1716010246638,-159.46,0.00030717,2]
[327352433,1716010246648,-1000.0,0.00031,6]
[327352434,1716010246657,-150.0,0.00031002,2]
[327352435,1716010246667,-150.0,0.00031723,2]
[327352436,1716010246680,-333.25588851,0.00032,4]
[327352437,1716010246689,-1000.0,0.00032,7]
[327352438,1716010246698,-150.0,0.00032444,2]
[327352439,1716010246708,-517.89053133,0.00033,120]
[327352440,1716010246718,-1000.0,0.00033,8]
[327352441,1716010246727,-156.66,0.00033151,120]
[327352442,1716010246737,-154.09,0.00033151,120]
[327352443,1716010246748,-150.0,0.00033165,2]
[327352444,1716010246758,-221.88,0.00033396,2]
[327352445,1716010246768,-150.0,0.00033886,2]
[327352446,1716010246777,-150.02,0.00034475,2]
[327352447,1716010246787,-150.0,0.00034607,2]
[327352448,1716010246796,-822.0,0.00035,9]
[327352449,1716010246805,-150.0,0.00035328,2]
[327352450,1716010246815,-1000.0,0.00036,9]
[327352451,1716010246825,-150.0,0.00036049,2]
[327352452,1716010246834,-159.46,0.00036094,2]
[327352453,1716010246843,-1107.19084093,0.000362,2]
[327352454,1716010246853,-157.051814,0.00036448,40]